Cogmind - Beta 16 @@@ ROGUE MODE // 2025.12.09 @ 20:20:35 Player: Lazz Result: Destroyed by H-55 Commando with Assault Rifle Performance ------------- Evolutions (2) 1000 Regions Visited (4) 800 Robots Destroyed (10) 50 Value Destroyed (165) 165 Prototype IDs (0) 0 Alien Tech Used (0) 0 Bonus (0) 0 TOTAL SCORE: 2015 Bonus ------- None Cogmind --------- Core Integrity 0/550 Matter 243/300 Energy 100/100 System Corruption 1% Temperature Cool (0) Movement Core (50) Location -8/Materials Parts ------- > --- POWER (1) -------- (None) > --- PROPULSION (3) --- (None) > --- UTILITY (5) ------ Improved Signal Interpreter > --- WEAPON (2) ------- Hammer > --- INVENTORY (5) ---- Sensor Array Improved Terrain Scanner Hacking Suite System Shield Peak State ------------ > --- POWER ------------ (None) > --- PROPULSION ------- Wheel Wheel Compact Wheel > --- UTILITY ---------- Small Storage Unit Improved Sensor Array Improved Signal Interpreter Improved Terrain Scanner Improved Terrain Scanner > --- WEAPON ----------- Assault Rifle Hammer > --- INVENTORY -------- Sensor Array Improved Terrain Scanner Hacking Suite System Shield [Rating: 19] Favorites ----------- Power Ion Engine Engine Ion Engine Propulsion Wheel Wheel Wheel Utility Improved Terrain Scanner Device Improved Terrain Scanner Storage Small Storage Unit Processor Signal Interpreter Weapon Hammer Energy Gun Small Laser Ballistic Gun Assault Rifle Impact Weapon Hammer Build | -11 -10 -10 -10 -8 ------- Run | Yrd Mat Min Sub Mat Slots Evolved 4 | . . . . 4 Power . | . . . . . Propulsion 1 | . . . . 1 Utility 3 | . . . . 3 Weapon . | . . . . . Parts Attached 20 | 8 1 3 . 8 Power 2 | 1 . 1 . . Engine 2 | 1 . 1 . . Core . | . . . . . Reactor . | . . . . . Propulsion 5 | 2 . 2 . 1 Treads . | . . . . . Leg . | . . . . . Wheel 5 | 2 . 2 . 1 Hover . | . . . . . Flight . | . . . . . Utility 8 | 2 . . . 6 Device 5 | 1 . . . 4 Storage 1 | 1 . . . . Processor 2 | . . . . 2 Hackware . | . . . . . Protection . | . . . . . Artifact . | . . . . . Weapon 5 | 3 1 . . 1 Energy Gun 2 | 2 . . . . Energy Cannon . | . . . . . Ballistic Gun 2 | 1 . . . 1 Ballistic Cannon . | . . . . . Launcher . | . . . . . Special Weapon . | . . . . . Impact Weapon 1 | . 1 . . . Slashing Weapon . | . . . . . Piercing Weapon . | . . . . . Special Melee Weapon . | . . . . . Unidentified Prototypes . | . . . . . Parts Lost 15 | . . 6 1 8 Power 2 | . . 1 1 . Propulsion 5 | . . 2 . 3 Utility 4 | . . . . 4 Weapon 4 | . . 3 . 1 Highest Loss Streak 8 | . . 6 1 8 To Critical Strikes . | . . . . . Average Backups 3 | 2 6 5 5 1 Power . | . . . . . Propulsion 1 | . 3 1 1 . Utility 1 | . 1 3 3 1 Weapon . | 1 2 . 1 . Tool/Special . | . . . . . Unused Backups 3 | . 1 . . 2 Power . | . . . . . Propulsion . | . . . . . Utility 2 | . . . . 2 Weapon 1 | . 1 . . . Tool/Special . | . . . . . Average Slot Usage (%) 83 | . 100 81 85 80 Engine 6 | . 14 9 14 . Wheel 25 | . 28 25 28 23 Device 18 | . 14 14 14 24 Storage 11 | . 14 14 14 8 Processor 3 | . . . . 8 Energy Gun 2 | . 8 3 . . Ballistic Gun 6 | . 14 2 . 7 Impact Weapon 9 | . 5 10 14 9 Peak Build Rating 19 | 9 10 10 8 19 Average Rating 10 | 5 9 7 7 14 On Entrance 6 | . 9 10 8 7 Avg Prop Armor Cover (%) . | . . . . . Naked Turns . | . . . . . Heaviest Build 14 | 13 14 11 11 12 Greatest Support 36 | 26 26 20 20 36 Greatest Overweight (x) 3 | . . . . 3 Average Overweight (x) . | . . . . . Largest Inventory Capacity 8 | 8 8 8 8 8 Average Capacity 7 | 7 8 8 8 7 Most Carried 8 | 6 8 8 5 4 Average Carried 3 | 2 6 5 5 1 Final Capacity 8 | 8 8 8 8 5 Final Carried 8 | 6 8 5 5 4 Class Distribution -------------------- 41% | Mutant 28% | Scavenger-Assassin 24% | Scavenger-Mutant 4% | Assassin Dominant Class ---------------- Mutant | -10/Materials Scavenger-Mutant | -10/Mines Scavenger-Mutant | -10/Subcaves Scavenger-Assassin | -8/Materials Resources | -11 -10 -10 -10 -8 ----------- Run | Yrd Mat Min Sub Mat Matter Collected 359 | 284 . 59 . 16 Remotely . | . . . . . Salvage Created 289 | 153 . 136 . . Parts 20 | 14 . 6 . . Haulers Intercepted . | . . . . . Recyclers Shooed . | . . . . . Parts Field Recycled . | . . . . . Retrieved Matter . | . . . . . Parts Self-Destructed . | . . . . . Prevented . | . . . . . Parts Restored . | . . . . . Kills | -11 -10 -10 -10 -8 ------- Run | Yrd Mat Min Sub Mat Combat Hostiles Destroyed 5 | . . 5 . . Melee 1 | . . 1 . . Guns 3 | . . 3 . . Classes Destroyed 4 | 2 . 2 . . Tunneler 4 | 4 . . . . Recycler 1 | 1 . . . . Swarmer 3 | . . 3 . . Grunt 2 | . . 2 . . Best Kill Streak 5 | 5 . 3 . . Combat Bots Only 3 | . . 3 . . Max Kills in Single Turn 1 | 1 . 1 . . Gunslinging . | . . . . . Exploded . | . . . . . Melee 1 | . . 1 . . Uniques/NPCs Destroyed . | . . . . . Combat | -11 -10 -10 -10 -8 -------- Run | Yrd Mat Min Sub Mat Hostile Shots Fired 117 | . . 81 5 31 Missed 26 | . . 18 . 8 Hits 91 | . . 63 5 23 Projectile 91 | . . 63 5 23 Critical Strikes 5 | . . 2 . 3 Damage Taken 1634 | . . 674 67 893 Core 777 | . . 221 . 556 Absorbed by Shields . | . . . . . Core Remaining (%) 55 | 100 . . 11 . Volleys Fired 43 | 10 . 22 . 11 Largest 2 | 2 . 2 . 1 Hottest 60 | 60 . 60 . 20 Shots Fired 65 | 20 . 34 . 11 Gun 65 | 20 . 34 . 11 Cannon . | . . . . . Launcher . | . . . . . Special . | . . . . . Kinetic 34 | 10 . 13 . 11 Thermal 27 | 10 . 17 . . Explosive . | . . . . . Electromagnetic 4 | . . 4 . . Robot Hit Streak 7 | 4 . 4 . 7 Robot Miss Streak 3 | 2 . 3 . 1 Penetration Max . | . . . . . Secondary Targets 1 | . . 1 . . Max Gunslinging Chain 1 | . . 1 . . Shots Hit Robots 49 | 10 . 22 . 17 Core Hits 12 | 6 . 5 . 1 Critical Kills . | . . . . . Critical Parts Destroyed 1 | . . 1 . . Critical Strikes 1 | . . 1 . . Smash 1 | . . 1 . . Melee Attacks 28 | . 4 9 . 15 Impact 28 | . 4 9 . 15 Slashing . | . . . . . Piercing . | . . . . . Sneak Attacks . | . . . . . Combat Hostiles . | . . . . . Follow-up Attacks . | . . . . . Damage Inflicted 584 | 97 . 277 . 210 Guns 415 | 97 . 219 . 99 Cannons . | . . . . . Explosions . | . . . . . Melee 169 | . . 58 . 111 Ramming . | . . . . . Kinetic 172 | 41 . 32 . 99 Thermal 190 | 56 . 134 . . Explosive . | . . . . . Electromagnetic 53 | . . 53 . . Impact 169 | . . 58 . 111 Slashing . | . . . . . Piercing . | . . . . . Highest Corruption 1 | . . . . 1 Average Corruption 1 | . . . . 1 Corruption Purged . | . . . . . Corruption Blocked . | . . . . . Overload Shots . | . . . . . Overflow Damage 31 | . . 31 . . Projectiles . | . . . . . Explosions . | . . . . . Melee 31 | . . 31 . . Knockbacks 1 | . . 1 . . Impact 1 | . . 1 . . Kinetic . | . . . . . Secondary . | . . . . . Self-Inflicted Damage . | . . . . . Shots . | . . . . . Rammed . | . . . . . Targets Rammed . | . . . . . Kicked . | . . . . . Crushed . | . . . . . Highest Temperature 112 | 60 . 112 . . Average Temperature 53 | 27 . 65 . . Received Heat Transfer 297 | . . 258 39 . Siege Activations . | . . . . . Martial Activations . | . . . . . Shielding Activations . | . . . . . Robots Disrupted . | . . . . . Combat Hostiles . | . . . . . Robots Corrupted 1 | . . 1 . . Combat Hostiles 1 | . . 1 . . Parts Fried . | . . . . . Impact Corruptions 3 | . . 3 . . Robots Melted . | . . . . . Combat Hostiles . | . . . . . Parts Melted . | . . . . . Heat Transferred 425 | 125 . 300 . . Parts Sabotaged . | . . . . . Parts Stolen . | . . . . . Parts Stripped . | . . . . . Power Chain Reactions . | . . . . . Alert | -11 -10 -10 -10 -8 ------- Run | Yrd Mat Min Sub Mat Maximum Alert Level . | . . . . . Low Security (%) 100 | 100 100 100 . 100 Level 1 . | . . . . . Level 2 . | . . . . . Level 3 . | . . . . . Level 4 . | . . . . . Level 5 . | . . . . . High Security . | . . . . . Max Security . | . . . . . Peak Influence 41 | 15 16 41 . 15 Initial 3 | . 3 1 . . Average 5 | 3 2 13 . . Influence Increases 179 | 25 17 120 . 17 Destroy 0b10 Robot/C 100 | . . 100 . . Destroy 0b10 Robot/NC 25 | 25 . . . . Destroy Leader 20 | . . 20 . . Disable Machine 30 | . 15 . . 15 Destroy Structure 4 | . 2 . . 2 Influence Decreases 179 | 20 16 126 . 17 Entered New Map 7 | . 2 5 . . Time Decay 121 | 20 14 70 . 17 Lost Part 51 | . . 51 . . Squads Dispatched 1 | . . . . 1 Investigation . | . . . . . Extermination . | . . . . . Reinforcement 1 | . . . . 1 Assault . | . . . . . Garrison . | . . . . . Intercept . | . . . . . Searches Triggered . | . . . . . Construction Impeded . | . . . . . Haulers Reinforced . | . . . . . Active Scanning Responses . | . . . . . Cargo Convoy Interrupts . | . . . . . Stealth | -11 -10 -10 -10 -8 --------- Run | Yrd Mat Min Sub Mat Distress Signals . | . . . . . Communications Jammed . | . . . . . Distress Signals . | . . . . . Times Spotted 12 | . 1 5 2 4 Peak Tracking Total 5 | . 2 5 2 4 Tactical Retreats . | . . . . . Traps | -11 -10 -10 -10 -8 ------- Run | Yrd Mat Min Sub Mat Traps Triggered 2 | . . . . 2 Indirectly . | . . . . . Trap Hack Attempts . | . . . . . Triggered . | . . . . . Disarmed . | . . . . . Reprogrammed . | . . . . . Reused . | . . . . . Traps Extracted . | . . . . . Installed . | . . . . . Triggered . | . . . . . Machines | -11 -10 -10 -10 -8 ---------- Run | Yrd Mat Min Sub Mat Machines Disabled 2 | . 1 . . 1 Max in Single Turn 1 | . 1 . . 1 Machines Repaired . | . . . . . Machines Dismantled . | . . . . . Machines Sabotaged . | . . . . . Overloaded Fab Kills . | . . . . . Hacking | -11 -10 -10 -10 -8 --------- Run | Yrd Mat Min Sub Mat Machines Accessed 1 | . 1 . . . Terminals 1 | . 1 . . . Fabricators . | . . . . . Repair Stations . | . . . . . Recycling Units . | . . . . . Scanalyzers . | . . . . . Garrison Access . | . . . . . Total Hacks 2 | . 2 . . . Successful . | . . . . . Failed 2 | . 2 . . . Catastrophic 1 | . 1 . . . Database Lockouts . | . . . . . Manual 2 | . 2 . . . Terminals 2 | . 2 . . . Fabricators . | . . . . . Repair Stations . | . . . . . Recycling Units . | . . . . . Scanalyzers . | . . . . . Garrison Access . | . . . . . Terminal Hacks . | . . . . . Fabricator Hacks . | . . . . . Repair Station Hacks . | . . . . . Recycling Unit Hacks . | . . . . . Scanalyzer . | . . . . . Garrison Access Hacks . | . . . . . Unauthorized Hacks . | . . . . . Terminals . | . . . . . Fabricators . | . . . . . Repair Stations . | . . . . . Recycling Units . | . . . . . Scanalyzers . | . . . . . Garrison Access . | . . . . . Data Cores Recovered . | . . . . . Used . | . . . . . Hacking Detections 1 | . 1 . . . Full Trace Events . | . . . . . Feedback Events . | . . . . . Feedback Blocked . | . . . . . Robot Schematics Acquired . | . . . . . Robots Built . | . . . . . Authchips . | . . . . . Time . | . . . . . Total Robot Build Rating . | . . . . . Part Schematics Acquired . | . . . . . Parts Built . | . . . . . Authchips . | . . . . . Time . | . . . . . Total Part Build Rating . | . . . . . Part Studies Acquired . | . . . . . Parts Repaired . | . . . . . Time . | . . . . . Parts Recycled . | . . . . . Recycled Matter . | . . . . . Retrieved Matter . | . . . . . Retrieved Components . | . . . . . Parts Scanalyzed . | . . . . . Part Schematics Acquired . | . . . . . Parts Damaged . | . . . . . Bothacking | -11 -10 -10 -10 -8 ------------ Run | Yrd Mat Min Sub Mat Used RIF Installer . | . . . . . Robots Hacked . | . . . . . Non-combat . | . . . . . Combat . | . . . . . Robot Hacks Applied . | . . . . . Relay Couplers Released . | . . . . . Fabnet Peak Effective % . | . . . . . Robots Rewired . | . . . . . Allies Hacked . | . . . . . Hacks Repelled . | . . . . . Allies | -11 -10 -10 -10 -8 -------- Run | Yrd Mat Min Sub Mat Total Allies . | . . . . . Largest Group . | . . . . . Highest-Rated Group . | . . . . . Highest-Rated Ally . | . . . . . Total Orders . | . . . . . Ally Attacks . | . . . . . Total Damage . | . . . . . Kills . | . . . . . Allies Corrupted . | . . . . . Allies Melted . | . . . . . Intel | -11 -10 -10 -10 -8 ------- Run | Yrd Mat Min Sub Mat Active Infowar (turns) 566 | 19 93 234 31 189 Sensors 186 | . . . . 186 Terrain 510 | 19 93 234 31 133 Robot Analysis Total . | . . . . . Derelict Logs Recovered 1 | . . 1 . . Drone Launches . | . . . . . Drone Recoveries . | . . . . . Exploration | -11 -10 -10 -10 -8 ------------- Run | Yrd Mat Min Sub Mat Turns Passed 753 | 99 93 234 31 296 Spaces Moved 397 | 62 86 127 30 92 Core 16 | 5 . . . 11 Treads . | . . . . . Legs . | . . . . . Wheels 381 | 57 86 127 30 81 Hover . | . . . . . Flight . | . . . . . Fastest Speed 50 | 50 90 80 80 50 Average Speed 85 | 86 90 80 80 88 Slowest Speed 200 | 90 90 80 80 200 Overloaded Moves . | . . . . . Propulsion Burnouts . | . . . . . Robots Hopped . | . . . . . Potential Cave-ins . | . . . . . Cave-ins Triggered . | . . . . . Exploration Rate (%) 13 | 4 13 37 4 10 Regions Visited 4 Branch Regions 2 Pre-discovered Areas . | . . . . . Known Exits Taken . | . . . . . Unknown Exits Taken 4 | 1 1 1 1 . Scrap Searched 1 | . . 1 . . Spaces Dug 2 | . 2 . . . Terrain Destroyed 2 | . 2 . . . Melee 2 | . 2 . . . Projectile . | . . . . . AOE . | . . . . . Terrain Rammed . | . . . . . Walls Destroyed . | . . . . . Machines Disabled . | . . . . . Actions | -11 -10 -10 -10 -8 --------- Run | Yrd Mat Min Sub Mat Total 694 | 85 94 211 36 268 Wait 193 | . . 47 7 139 Move 393 | 61 85 126 29 92 Hop . | . . . . . Pick Up 13 | 6 3 1 . 3 Fast Attach 8 | 7 . 1 . . Attach 9 | . . 4 . 5 Detach . | . . . . . Swap 6 | 1 1 1 . 3 Drop 1 | . 1 . . . Fire 43 | 10 . 22 . 11 Melee 28 | . 4 9 . 15 Ram . | . . . . . Kick . | . . . . . Crush . | . . . . . Escape Stasis . | . . . . . Rewire . | . . . . . Trap . | . . . . . Miscellaneous . | . . . . . Route ------- -11/Scrapyard -10/Materials -10/Mines -10/Subcaves -8/Materials History --------- Turn | Location | Event 2 | -11/Scrapyard | Met Revision 17 30 | -11/Scrapyard | Discovered new exit (range 14) 100 | -11/Scrapyard | Entered Materials 105 | -10/Materials | Discovered new exit (range 13) 193 | -10/Materials | Entered Mines 244 | -10/Mines | Core integrity fell below 50% 264 | -10/Mines | Core integrity fell below 20% 279 | -10/Mines | Lost 6 parts (1p2n3w) 352 | -10/Mines | Learned Materials terminal intel 406 | -10/Mines | Discovered new exit (range 7) 427 | -10/Mines | Entered Subcaves 428 | -10/Subcaves | Approached by a straggling Scientist 447 | -10/Subcaves | Discovered new exit (range 10) 458 | -10/Subcaves | Entered Materials 458 | -8/Materials | Evolved 4 slots: Propulsion x1, Utility x3 459 | -8/Materials | Loaded intel: 12 terminal locations 727 | -8/Materials | Core integrity fell below 50% 742 | -8/Materials | Core integrity fell below 20% 754 | -8/Materials | Destroyed by H-55 Commando with Assault Rifle Last Messages --------------- 00712_ Com. Wheel destroyed. 00715_ Assault Rifle destroyed. 00715_ Imp. Sensor Array destroyed. 00715_ Critical hit (Blast). 00715_ Knocked back. 00721_ Sml. Storage Unit destroyed. 00721_ Knocked back. 00723_ Slug penetrates U-05 Engineer. 00723_ U-05 Engineer destroyed. 00726_ Knocked back. 00727_ Acquired 16 matter. 00729_ U-05 Engineer builds a Wall. 00735_ Penetrated by Slug. 00737_ U-05 Engineer builds a Wall. 00738_ Slug penetrates Wall. 00738_ Knocked back. 00749_ Penetrated by Slug. 00749_ Imp. Terrain Scanner destroyed. 00750_ Knocked back. 00754_ Penetrated by Slug. Map ----- +----------------------------------------------------+ | # #??????????????????????????????????????????? | | # # ?????????????????????????????????????????? | | # #?? ? ????????????????????????????????????? | | # #?????? ???????????????????????????????????? | | # ####+#########?????????????????????????????? | | ###+### #?????????????????"???????????? | | #?????????????????T???????????? | | #????????T????????"???????????? | | +???????""????????????????????? | | ###+### #?????????????????????????????? | | ## ## #???#?????????????????????????? | | ## ## #????????????????????????? | | ## ## ######+#### #????????????????????????? | | ### ## #?????????# ?????????????????????????? | | ?## ## #?#???????# ?????????????????????????? | | ??# "" ## #?????????# #????????????????????????? | | ?## Y" ## ##????????+ ????????????????????????? | | ??# "" # #????????# #????????????????????????? | | ??# # #????????# #????????????????????????? | | ??###### #????????# #????????????????????????? | | ????##?# #????????# #????"???????????????????? | | ?????#?# #??????###h###??T???????????????????? | | ?????#?### ###?????##! %%%#??"???????????????????? | | #???????## #???????##%! #??????????????????????? | | ?#????#??# #???????## * H#??????????????????????? | | ?????????# ########## @#??????????????????????? | | #????????# u % %#??????????????????????? | | ?????????##################??????????????????????? | | ??????????????????# #????????????????????????????? | | ??????????????????##?????????????????????????????? | | ?????????????????????????????????????????????????? | | ?????????????????????????????????????????????????? | | ?????????????????????????????????????????????????? | | | | | | | | | | | | | | | | | | | | | | | | | | | | | | | | | | | +----------------------------------------------------+ Best States ------------- Heat Dissipation 31 Energy Generation 10 Energy Capacity 250 Matter Stores 300 Matter Capacity 300 Sight Range 16 Robot Scan Range 15 Terrain Scan Range 16 Terrain Scan Density 10 Evasion (%) 44 Item Schematics ----------------- None Robot Schematics ------------------ None Fabricated ------------ Nothing Repaired ---------- Nothing Studied --------- None Alien Tech Used ----------------- None Achievements -------------- None Challenges ------------ None Game ------ Seed GuidedSurgeBattery Manual? 0 Play Time 00:09:43 Cumulative 116.7 hours Start 2025.12.09 @ 20:13:23 End 2025.12.09 @ 20:20:35 Sessions 1 Manual Loads 0 Difficulty Rogue Special Mode None Game No. 167 Rogue 167 Adventurer 0 Explorer 0 Win Type - Total 1 Types 1/0/0/0/0/0/0/0/0/0 Lore% 60 Gallery% 56 Achievement% 42 Wizard Run 0 Options --------- Layout 2 ASCII 0 Keyboard 0 Movement Vi Keybinds 0 Fullscreen 1 Font 16/SmallcapsGlow Map View 50x44 Zoom Use 0% Tactical HUD 1 Map Filters NONE Filters NONE Steam SD RUN: e4dd93b4-df2d-4998-b227-42f32f7aad42